Cogmind - Beta 15 @@@ ROGUE MODE // 2025.06.02 @ 21:55:59 Player: Tenderz Result: Destroyed by as-42054 with Assembled Maul Performance ------------- Evolutions (0) 0 Regions Visited (2) 400 Robots Destroyed (18) 90 Value Destroyed (416) 416 Prototype IDs (0) 0 Alien Tech Used (0) 0 Bonus (0) 0 TOTAL SCORE: 906 Bonus ------- None Cogmind --------- Core Integrity 0/250 Matter 251/300 Energy 101/125 System Corruption 6% Temperature Cool (72) Movement Walking (190) Ox1 Location -10/Mines Parts ------- > --- POWER (1) -------- Light Ion Engine > --- PROPULSION (2) --- Aluminum Leg Aluminum Leg > --- UTILITY (2) ------ Large Storage Unit Seismic Detector > --- WEAPON (2) ------- EM Pulse Gun Small Laser > --- INVENTORY (15) --- Light Treads Aluminum Leg Wheel High-capacity Storage Unit Large Matter Pod (80) Grenade Launcher Mining Laser Mining Laser Peak State ------------ > --- POWER ------------ Light Nuclear Core > --- PROPULSION ------- Light Treads Light Treads > --- UTILITY ---------- High-capacity Storage Unit Seismic Detector > --- WEAPON ----------- Medium Laser Light Assault Rifle > --- INVENTORY -------- Light Ion Engine Aluminum Leg Aluminum Leg Aluminum Leg Large Matter Pod Propulsion Shielding EM Pulse Gun Small Laser Grenade Launcher Mining Laser [Rating: 10] Favorites ----------- Power Light Ion Engine Engine Light Ion Engine Power Core Light Nuclear Core Propulsion Light Treads Treads Light Treads Leg Aluminum Leg Utility Seismic Detector Device Seismic Detector Storage Small Storage Unit Protection Propulsion Shielding Weapon Light Assault Rifle Energy Gun Medium Laser Ballistic Gun Light Assault Rifle Launcher Grenade Launcher Special Weapon Mining Laser Build | -11 -10 -10 ------- Run | Yrd Mat Min Slots Evolved . | . . . Power . | . . . Propulsion . | . . . Utility . | . . . Weapon . | . . . Parts Attached 22 | 7 9 6 Power 5 | 1 2 2 Engine 3 | 1 . 2 Core 2 | . 2 . Reactor . | . . . Propulsion 5 | 2 2 1 Treads 2 | . 2 . Leg 3 | 2 . 1 Wheel . | . . . Hover . | . . . Flight . | . . . Utility 5 | 2 3 . Device 1 | 1 . . Storage 3 | 1 2 . Processor . | . . . Hackware . | . . . Protection 1 | . 1 . Artifact . | . . . Weapon 7 | 2 2 3 Energy Gun 4 | 1 1 2 Energy Cannon . | . . . Ballistic Gun 1 | 1 . . Ballistic Cannon . | . . . Launcher 1 | . . 1 Special Weapon 1 | . 1 . Impact Weapon . | . . . Slashing Weapon . | . . . Piercing Weapon . | . . . Special Melee Weapon . | . . . Unidentified Prototypes . | . . . Parts Lost 9 | . 3 6 Power 4 | . 2 2 Propulsion 1 | . . 1 Utility 1 | . . 1 Weapon 3 | . 1 2 Highest Loss Streak 6 | . 2 6 To Critical Strikes . | . . . Average Backups 7 | 3 7 8 Power . | . . . Propulsion 2 | 1 2 2 Utility 1 | . 1 2 Weapon 2 | 1 2 3 Tool/Special . | . . . Unused Backups 5 | . 2 3 Power 1 | . 1 . Propulsion 1 | . . 1 Utility 2 | . 1 1 Weapon 1 | . . 1 Tool/Special . | . . . Average Slot Usage (%) 93 | . 99 84 Engine 5 | . 8 . Core 3 | . 4 2 Treads 15 | . 21 4 Leg 12 | . 6 22 Device 9 | . 8 11 Storage 14 | . 14 14 Protection 3 | . 5 . Energy Gun 15 | . 9 24 Ballistic Gun 9 | . 14 2 Special Weapon 2 | . 4 . Peak Build Rating 10 | 7 10 10 Average Rating 7 | 4 7 6 On Entrance 5 | . 7 10 Naked Turns . | . . . Heaviest Build 49 | 12 49 30 Greatest Support 40 | 20 40 40 Greatest Overweight (x) 2 | . 1 2 Average Overweight (x) . | . . . Largest Inventory Capacity 20 | 8 20 15 Average Capacity 11 | 6 10 15 Most Carried 11 | 5 11 11 Average Carried 7 | 3 7 8 Final Capacity 15 | 8 15 15 Final Carried 11 | 5 11 8 Class Distribution -------------------- 100% | Mutant Dominant Class ---------------- Mutant | -10/Materials Mutant | -10/Mines Resources | -11 -10 -10 ----------- Run | Yrd Mat Min Matter Collected 803 | 150 550 103 Remotely . | . . . Salvage Created 693 | 15 601 77 Parts 33 | 3 30 . Haulers Intercepted 1 | . 1 . Recyclers Shooed 1 | . 1 . Parts Field Recycled . | . . . Retrieved Matter . | . . . Parts Self-Destructed . | . . . Prevented . | . . . Kills | -11 -10 -10 ------- Run | Yrd Mat Min Combat Hostiles Destroyed 17 | . 12 5 Guns 17 | . 12 5 Classes Destroyed 7 | 1 5 1 Tunneler 2 | 1 1 . Hauler 1 | . 1 . Recycler 1 | . 1 . Watcher 2 | . 2 . Swarmer 3 | . 3 . Grunt 9 | . 9 . Assembled 5 | . . 5 Best Kill Streak 5 | 1 5 5 Combat Bots Only 5 | . 5 5 Max Kills in Single Turn 2 | 1 2 1 Gunslinging 1 | . 1 . Exploded . | . . . Melee . | . . . Uniques/NPCs Destroyed . | . . . Combat | -11 -10 -10 -------- Run | Yrd Mat Min Hostile Shots Fired 87 | . 52 35 Missed 15 | . 7 8 Hits 72 | . 45 27 Melee 17 | . . 17 Projectile 55 | . 45 10 Critical Strikes 2 | . . 2 Damage Taken 1185 | . 567 618 Core 252 | . 103 149 Absorbed by Shields . | . . . Redirected to Shielding 51 | . 48 3 Core Remaining (%) 100 | 100 . . Volleys Fired 103 | 3 75 25 Largest 2 | 2 2 2 Hottest 100 | 70 100 80 Shots Fired 183 | 6 131 46 Gun 167 | 6 115 46 Cannon . | . . . Launcher . | . . . Special 16 | . 16 . Kinetic 74 | 3 59 12 Thermal 100 | 3 72 25 Explosive . | . . . Electromagnetic 9 | . . 9 Robot Hit Streak 9 | 5 9 6 Robot Miss Streak 3 | 1 3 3 Penetration Max . | . . . Secondary Targets 4 | . 3 1 Max Gunslinging Chain 1 | . 1 1 Shots Hit Robots 108 | 5 78 25 Core Hits 47 | 2 34 11 Critical Kills . | . . . Critical Parts Destroyed 1 | . 1 . Critical Strikes 3 | . 3 . Burn 2 | . 2 . Destroy 1 | . 1 . Melee Attacks . | . . . Impact . | . . . Slashing . | . . . Piercing . | . . . Sneak Attacks . | . . . Combat Hostiles . | . . . Follow-up Attacks . | . . . Damage Inflicted 1187 | 56 847 284 Guns 1187 | 56 847 284 Cannons . | . . . Explosions . | . . . Melee . | . . . Ramming . | . . . Kinetic 374 | 17 334 23 Thermal 813 | 39 513 261 Explosive . | . . . Electromagnetic . | . . . Impact . | . . . Slashing . | . . . Piercing . | . . . Highest Corruption 6 | . . 6 Average Corruption 5 | . . 5 Corruption Purged . | . . . Corruption Blocked . | . . . Effects 10 | . . 10 Message Errors 1 | . . 1 Matter Fused 3 | . . 3 Heat Flow Errors 1 | . . 1 Energy Discharges 1 | . . 1 Data Loss (minor) 3 | . . 3 Data Loss (major) 1 | . . 1 Overload Shots . | . . . Overflow Damage . | . . . Projectiles . | . . . Explosions . | . . . Melee . | . . . Knockbacks . | . . . Impact . | . . . Kinetic . | . . . Secondary . | . . . Self-Inflicted Damage . | . . . Shots . | . . . Rammed . | . . . Targets Rammed . | . . . Kicked . | . . . Crushed . | . . . Highest Temperature 250 | 50 202 250 Average Temperature 58 | 26 59 57 Received Heat Transfer 309 | . 309 . Siege Activations . | . . . Martial Activations . | . . . Shielding Activations . | . . . Robots Disrupted . | . . . Combat Hostiles . | . . . Robots Corrupted . | . . . Combat Hostiles . | . . . Parts Fried . | . . . Impact Corruptions . | . . . Robots Melted . | . . . Combat Hostiles . | . . . Parts Melted 1 | . 1 . Heat Transferred 2420 | 111 1591 718 Parts Sabotaged . | . . . Parts Stolen . | . . . Parts Stripped . | . . . Power Chain Reactions . | . . . Alert | -11 -10 -10 ------- Run | Yrd Mat Min Maximum Alert Level . | . . . Low Security (%) 100 | 100 100 100 Level 1 . | . . . Level 2 . | . . . Level 3 . | . . . Level 4 . | . . . Level 5 . | . . . High Security . | . . . Max Security . | . . . Peak Influence 122 | 5 122 9 Initial 9 | . . 9 Average 19 | . 32 . Influence Increases 356 | 5 351 . Destroy 0b10 Robot/C 240 | . 240 . Destroy 0b10 Robot/NC 30 | 5 25 . Destroy Leader 56 | . 56 . Successful Hack 17 | . 17 . Destroy Structure 13 | . 13 . Influence Decreases 356 | 5 326 25 Entered New Map 16 | . . 16 Time Decay 310 | 5 296 9 Lost Part 30 | . 30 . Squads Dispatched 2 | . 2 . Investigation 1 | . 1 . Extermination . | . . . Reinforcement 1 | . 1 . Assault . | . . . Garrison . | . . . Intercept . | . . . Searches Triggered . | . . . Construction Impeded . | . . . Haulers Reinforced . | . . . Active Scanning Responses . | . . . Cargo Convoy Interrupts . | . . . Stealth | -11 -10 -10 --------- Run | Yrd Mat Min Distress Signals 1 | . 1 . Communications Jammed . | . . . Distress Signals . | . . . Times Spotted 27 | . 21 6 Peak Tracking Total 7 | . 4 7 Tactical Retreats 1 | . . 1 Traps | -11 -10 -10 ------- Run | Yrd Mat Min Traps Triggered 1 | . 1 . Indirectly . | . . . Trap Hack Attempts . | . . . Triggered . | . . . Disarmed . | . . . Reprogrammed . | . . . Reused . | . . . Traps Extracted . | . . . Installed . | . . . Triggered . | . . . Machines | -11 -10 -10 ---------- Run | Yrd Mat Min Machines Disabled . | . . . Max in Single Turn . | . . . Machines Repaired . | . . . Machines Dismantled . | . . . Machines Sabotaged . | . . . Overloaded Fab Kills . | . . . Hacking | -11 -10 -10 --------- Run | Yrd Mat Min Machines Accessed 8 | . 8 . Terminals 6 | . 6 . Fabricators . | . . . Repair Stations . | . . . Recycling Units 2 | . 2 . Scanalyzers . | . . . Garrison Access . | . . . Total Hacks 25 | . 25 . Successful 10 | . 10 . Failed 14 | . 14 . Catastrophic 2 | . 2 . Database Lockouts 1 | . 1 . Manual 14 | . 14 . Terminals 18 | . 18 . Fabricators . | . . . Repair Stations . | . . . Recycling Units 7 | . 7 . Scanalyzers . | . . . Garrison Access . | . . . Terminal Hacks 7 | . 7 . Robot Analysis 3 | . 3 . Emergency Access Points 1 | . 1 . Locate Traps 1 | . 1 . Transport Status 1 | . 1 . Zone Layout 1 | . 1 . Fabricator Hacks . | . . . Repair Station Hacks . | . . . Recycling Unit Hacks 3 | . 3 . Report Inventory 1 | . 1 . Retrieve Matter 1 | . 1 . Retrieve Components 1 | . 1 . Scanalyzer . | . . . Garrison Access Hacks . | . . . Unauthorized Hacks . | . . . Terminals . | . . . Fabricators . | . . . Repair Stations . | . . . Recycling Units . | . . . Scanalyzers . | . . . Garrison Access . | . . . Data Cores Recovered . | . . . Used . | . . . Hacking Detections 8 | . 8 . Full Trace Events . | . . . Feedback Events . | . . . Feedback Blocked . | . . . Robot Schematics Acquired . | . . . Robots Built . | . . . Authchips . | . . . Time . | . . . Total Robot Build Rating . | . . . Part Schematics Acquired . | . . . Parts Built . | . . . Authchips . | . . . Time . | . . . Total Part Build Rating . | . . . Parts Repaired . | . . . Time . | . . . Parts Recycled . | . . . Recycled Matter . | . . . Retrieved Matter . | . . . Retrieved Components . | . . . Parts Scanalyzed . | . . . Part Schematics Acquired . | . . . Parts Damaged . | . . . Bothacking | -11 -10 -10 ------------ Run | Yrd Mat Min Used RIF Installer . | . . . Robots Hacked . | . . . Non-combat . | . . . Combat . | . . . Robot Hacks Applied . | . . . Relay Couplers Released . | . . . Fabnet Peak Effective % . | . . . Robots Rewired . | . . . Allies Hacked . | . . . Hacks Repelled . | . . . Allies | -11 -10 -10 -------- Run | Yrd Mat Min Total Allies . | . . . Largest Group . | . . . Highest-Rated Group . | . . . Highest-Rated Ally . | . . . Total Orders . | . . . Ally Attacks . | . . . Total Damage . | . . . Kills . | . . . Allies Corrupted . | . . . Allies Melted . | . . . Intel | -11 -10 -10 ------- Run | Yrd Mat Min Active Infowar (turns) 1021 | 13 574 434 Seismic 1021 | 13 574 434 Robot Analysis Total 3 | . 3 . Derelict Logs Recovered . | . . . Drone Launches . | . . . Drone Recoveries . | . . . Exploration | -11 -10 -10 ------------- Run | Yrd Mat Min Turns Passed 1526 | 81 925 520 Spaces Moved 475 | 50 361 64 Core 3 | 3 . . Treads 239 | . 218 21 Legs 233 | 47 143 43 Wheels . | . . . Hover . | . . . Flight . | . . . Fastest Speed 50 | 50 120 160 Average Speed 154 | 115 154 182 Slowest Speed 260 | 120 240 260 Overloaded Moves . | . . . Propulsion Burnouts . | . . . Robots Hopped . | . . . Potential Cave-ins . | . . . Cave-ins Triggered . | . . . Exploration Rate (%) 28 | 4 73 9 Regions Visited 2 Branch Regions 1 Pre-discovered Areas . | . . . Known Exits Taken . | . . . Unknown Exits Taken 2 | 1 1 . Scrap Searched . | . . . Spaces Dug 16 | . 16 . Terrain Destroyed 16 | . 16 . Melee . | . . . Projectile 16 | . 16 . AOE . | . . . Terrain Rammed . | . . . Walls Destroyed . | . . . Machines Disabled . | . . . Actions | -11 -10 -10 --------- Run | Yrd Mat Min Total 1052 | 64 568 420 Wait 414 | . 99 315 Move 473 | 49 360 64 Hop . | . . . Pick Up 17 | 5 9 3 Fast Attach 11 | 7 2 2 Attach 7 | . 1 6 Detach . | . . . Swap 24 | . 19 5 Drop 3 | . 3 . Fire 103 | 3 75 25 Melee . | . . . Ram . | . . . Kick . | . . . Crush . | . . . Escape Stasis . | . . . Rewire . | . . . Trap . | . . . Miscellaneous . | . . . Route ------- -11/Scrapyard -10/Materials (discovered 5 exits: [*Mat x2] / [*Min x2] / [*Sub]) -10/Mines History --------- Turn | Location | Event 14 | -11/Scrapyard | Discovered new exit (range 15) 82 | -11/Scrapyard | Entered Materials 94 | -10/Materials | Central database locked down 217 | -10/Materials | Discovered new exit (range 12) 348 | -10/Materials | Discovered new exit (range 11) 349 | -10/Materials | Build established: Mutant 391 | -10/Materials | Discovered new exit (range 15) 763 | -10/Materials | Discovered new exit (range 8) 782 | -10/Materials | Derelicts attacked the area 999 | -10/Materials | Discovered new exit (range 6) 1007 | -10/Materials | Entered Mines 1008 | -10/Mines | Assembled infested the area 1066 | -10/Mines | Core integrity fell below 50% 1098 | -10/Mines | Core integrity fell below 20% 1127 | -10/Mines | Lost 6 parts (2p1n1u2w) 1527 | -10/Mines | Destroyed by as-42054 with Assembled Maul Last Messages --------------- 01119_ Acquired 17 matter. 01122_ Acquired 10 matter. 01126_ Acquired Wheel. 01138_ Acquired Mining Laser. 01152_ System corrupted: Component data lost. 01174_ System corrupted: Energy discharge (-18). 01198_ System corrupted: Matter fused (-5). 01228_ System corrupted: Component data lost. 01249_ System corrupted: Matter fused (-9). 01294_ System corrupted: Substantial component data lost. 01337_ System corrupted: Matter fused (-6). 01391_ System corrupted: Heat flow error (+275). 01429_ System corrupted: Component data lost. 01496_ Acquired 12 matter. 01510_ Acquired 14 matter. 01514_ Acquired Lgt. Ion Engine. 01514_ as-42054 sneak attacks. 01514_ R-06 Scavenger system corrupted by crushing effect. 01514_ R-06 Scavenger knocked back. Map ----- +----------------------------------------------------+ | ?????????????????????????????????????????????????? | | ?????????????????????????????????????????????????? | | ?????????????????????????????????????????????????? | | ?????????????????????????????????????????????????? | | ?????????????????????????????????????????????????? | | ?????????????????????????????????????????????????? | | ?????????????????????????????????????????????????? | | ?????????????????????????????????????????????????? | | ?????????????????????????????????????????????????? | | ?????????????????????????????????????????????????? | | ?????????????????????????????????????????????????? | | ?????????????????????????????????????????????????? | | ?????????????????????????????????????????????????? | | ?????????????????????????????????????????????????? | | ?????????????????????????????????????????????????? | | ??????????????????????????????###????????????????? | | ????????????????????????????? !%?????????????????? | | ????????????????????????????? =#?????????????????? | | ???????????????????????????## #?????????????????? | | ??????????????????????????? ??????????????????? | | ??????????????????????####? ???????????????????? | | ?????????????????????## ## #???????????????????? | | ????????????????????##%! #???????????????????? | | ?????????? %###%### % ##??????????????????? | | ??????????????%% %% % %% #??????????????????? | | ????????????????????# a@ #??????????????????? | | ????????????????????# % ## ##??????????????????? | | ????????????????????# <##??????????????????????? | | ????????????????????# ## #???????????????????????? | | ????????????????????#??# #???????????????????????? | | ???????????????????????# #???????????????????????? | | ???????????????????????# #???????????????????????? | | ???????????????######### #???????????????????????? | | ???????????????# #???????????????????????? | | ???????????????# #### ####???????????????????????? | | ???????????????# ##?# #??????????????????????????? | | ??????????????## ### #??????????????????????????? | | ??????????????# ## #??????????????????????????? | | ??????????????# ## #??????????????????????????? | | ??????????????# #??????????????????????????? | | ?????????????## ####??????????????????????????? | | ????????????## ##?????????????????????????????? | | ???????????## ##??????????????????????????????? | | ???????????# ##???????????????????????????????? | | ??????????# ##????????????????????????????????? | | ??????????# #?????????????????????????????????? | | ??????????## ##?????????????????????????????????? | | ???????????###???????????????????????????????????? | | ?????????????????????????????????????????????????? | | ?????????????????????????????????????????????????? | +----------------------------------------------------+ Best States ------------- Heat Dissipation 25 Energy Generation 14 Energy Capacity 160 Matter Stores 300 Matter Capacity 300 Sight Range 16 Terrain Scan Density 10 Propulsion Shielding 33 Evasion (%) 55 Recoil Reduction 2 Item Schematics ----------------- None Robot Schematics ------------------ None Fabricated ------------ Nothing Repaired ---------- Nothing Alien Tech Used ----------------- None Achievements -------------- None Challenges ------------ None Game ------ Seed TacticalMultireflexTerrabomb Manual? 0 Play Time 00:15:38 Cumulative 78.8 hours Start 2025.06.02 @ 21:40:26 End 2025.06.02 @ 21:55:59 Sessions 1 Manual Loads 0 Difficulty Rogue Special Mode None Game No. 53 Rogue 53 Adventurer 0 Explorer 0 Win Type - Total 0 Types 0/0/0/0/0/0/0/0/0/0 Lore% 36 Gallery% 44 Achievement% 41 Wizard Run 0 Options --------- Layout 2 ASCII 0 Keyboard 0 Movement Numpad Keybinds 0 Fullscreen 0 Font 24/Proggy Map View 59x48 Zoom Use 0% Tactical HUD 1 Map Filters NONE Filters NONE Steam 1 RUN: ba6e531c-7388-43c2-96a1-d6d67ba8df3b